bitfinex-derivatives/quotes_BTCF0:USTF0_20250709
["timestamp","ask_amount","ask_price","bid_price","bid_amount"]
[1752057005284,1.1247999,108890.0,108880.0,0.17750658]
[1752057005693,1.1247999,108890.0,108880.0,0.17750876]
[1752057006096,1.3756098,108890.0,108880.0,0.17750876]
[1752057006895,0.7517698,108890.0,108880.0,0.17750876]
[1752057007191,1.3756098,108890.0,108880.0,0.17750876]
[1752057010397,1.3755698,108890.0,108880.0,0.17750876]
[1752057011402,1.3755698,108890.0,108880.0,0.13623833]
[1752057011595,1.3755698,108890.0,108880.0,0.17751035]
[1752057013999,1.3755698,108890.0,108880.0,0.17751027]
[1752057022900,1.3755698,108890.0,108880.0,0.17751021]
[1752057025204,1.3755698,108890.0,108880.0,0.12268551]
[1752057027508,1.3755698,108890.0,108880.0,0.17751021]
[1752057031813,1.3755698,108890.0,108880.0,0.16099021]
[1752057033205,1.3755698,108890.0,108880.0,0.15022026]
[1752057036212,1.45815252,108890.0,108880.0,0.09539556]
[1752057042818,1.3755698,108890.0,108880.0,0.10616551]
[1752057043624,1.45815252,108890.0,108880.0,0.10616551]
[1752057046413,1.3755698,108890.0,108880.0,0.16099021]
[1752057059732,1.3755698,108890.0,108880.0,0.16098991]
[1752057065143,1.3755698,108890.0,108880.0,0.11971821]
[1752057065334,1.3755698,108890.0,108880.0,0.16120464]
[1752057073161,1.3755698,108890.0,108880.0,0.15043469]
[1752057076262,1.45828298,108890.0,108880.0,0.09539976]
[1752057081065,1.45828298,108890.0,108880.0,0.11197976]
[1752057082167,0.95666318,108890.0,108880.0,0.11197976]
[1752057082361,1.3755698,108890.0,108880.0,0.11197976]
[1752057082970,1.45828298,108890.0,108880.0,0.11197976]
[1752057083169,1.45828298,108890.0,108880.0,0.12274978]
[1752057086370,1.3755698,108890.0,108880.0,0.17778471]
[1752057090080,1.3755698,108890.0,108880.0,0.17778482]
[1752057091178,1.3755698,108890.0,108880.0,0.17778483]
[1752057097276,0.87395,108890.0,108880.0,0.17778483]
[1752057097582,1.3755698,108890.0,108880.0,0.17778483]
[1752057101874,1.3755698,108890.0,108880.0,0.16120528]
[1752057103686,0.7517698,108890.0,108880.0,0.16120528]
[1752057103887,1.3751298,108890.0,108880.0,0.17671528]
[1752057107903,1.3751298,108890.0,108880.0,0.17671501]
[1752057108905,0.7517698,108890.0,108880.0,0.17671501]
[1752057109391,1.3750898,108890.0,108880.0,0.17671501]
[1752057110794,1.3750898,108890.0,108880.0,0.17671481]
[1752057116901,1.3750898,108890.0,108880.0,0.36038201]
[1752057119807,1.3750898,108890.0,108880.0,0.36038195]
[1752057120403,1.3750898,108890.0,108880.0,0.34487195]
[1752057120607,1.3750898,108890.0,108880.0,0.36038195]
[1752057121002,0.5009599,108890.0,108880.0,0.36038195]
[1752057121207,0.4374599,108890.0,108880.0,0.61119185]
[1752057121406,1.0607399,108890.0,108880.0,0.64349185]
[1752057121700,1.0607399,108890.0,108880.0,0.63272189]
[1752057121907,1.0607399,108890.0,108880.0,0.64349141]
[1752057122510,1.0597399,108890.0,108880.0,0.64349141]
[1752057123208,0.18565,108890.0,108880.0,0.63272189]
[1752057123518,1.0597399,108890.0,108880.0,0.63272189]
[1752057123809,1.0597399,108890.0,108880.0,0.61721189]
[1752057123998,1.0597399,108890.0,108880.0,0.65653189]
[1752057126111,1.0577399,108890.0,108880.0,0.65653189]
[1752057126310,1.14045308,108890.0,108880.0,0.56022076]
[1752057126511,1.14045308,108890.0,108880.0,0.30941086]
[1752057127414,0.88964318,108890.0,108880.0,0.30941086]
[1752057127613,1.14045308,108890.0,108880.0,0.30941086]
[1752057129215,0.88964318,108890.0,108880.0,0.30941086]
[1752057129524,1.14045308,108890.0,108880.0,0.30941086]
[1752057130014,1.39126298,108890.0,108880.0,0.30941086]
[1752057130202,1.42306298,108890.0,108880.0,0.30941086]
[1752057131117,0.92144318,108890.0,108880.0,0.30941086]
[1752057131319,1.42306298,108890.0,108880.0,0.30941086]
[1752057131816,1.3403498,108890.0,108880.0,0.30941086]
[1752057133218,1.0895399,108890.0,108880.0,0.32018039]
[1752057133410,0.4662599,108890.0,108880.0,0.32018039]
[1752057133611,1.0894999,108890.0,108880.0,0.32017973]
[1752057134214,1.17221308,108890.0,108880.0,0.32017973]
[1752057134714,1.0894999,108890.0,108880.0,0.82017973]
[1752057136020,1.1201999,108890.0,108880.0,0.82017973]
[1752057136319,1.1201999,108890.0,108880.0,0.8614425]
[1752057137316,1.6201999,108890.0,108880.0,0.8614425]
[1752057137920,1.6201999,108890.0,108880.0,0.86144255]
[1752057139920,1.6201999,108890.0,108880.0,0.91647748]
[1752057144621,1.6201999,108890.0,108880.0,0.88417748]
[1752057145126,1.6201999,108890.0,108880.0,0.86981806]
[1752057145325,1.6201999,108890.0,108880.0,0.88417748]
[1752057146333,1.6201999,108890.0,108880.0,0.86036748]
[1752057147625,1.6201999,108890.0,108880.0,0.88524748]
[1752057151031,1.6201999,108890.0,108880.0,0.87088806]
[1752057151229,1.6201999,108890.0,108880.0,0.88524759]
[1752057154031,1.6201999,108890.0,108880.0,0.88524771]
[1752057156033,1.6201999,108890.0,108880.0,0.83021278]
[1752057161141,1.6201999,108890.0,108880.0,0.86061278]
[1752057162740,1.6201999,108890.0,108880.0,0.84625325]
[1752057163038,1.6201999,108890.0,108880.0,0.86061277]
[1752057165040,1.6201999,108890.0,108880.0,0.90487805]
[1752057166249,1.70291308,108890.0,108880.0,0.84984312]
[1752057168649,1.70291308,108890.0,108880.0,0.84984315]
[1752057170640,1.45210318,108890.0,108880.0,0.84984315]
[1752057170847,1.70291308,108890.0,108880.0,0.84984315]
[1752057173247,1.70291308,108890.0,108880.0,0.86061279]
[1752057176251,1.6201999,108890.0,108880.0,0.91564772]
[1752057180657,1.5575799,108890.0,108880.0,1.16645762]
[1752057181654,1.5575799,108890.0,108880.0,1.11142269]
[1752057182457,1.5575799,108890.0,108880.0,1.16645762]
[1752057186659,1.5575799,108890.0,108880.0,0.91564772]
[1752057191165,1.5575799,108890.0,108880.0,0.91564755]
[1752057194170,1.5575799,108890.0,108880.0,1.1664572]
[1752057200177,1.5575799,108890.0,108880.0,1.16645728]
[1752057202879,1.5575799,108890.0,108880.0,1.15568781]
[1752057203174,1.5575799,108890.0,108880.0,1.16645734]
[1752057210680,1.30677,108890.0,108880.0,1.16645734]
[1752057210883,1.5575799,108890.0,108880.0,1.16645734]
[1752057212685,1.30677,108890.0,108880.0,1.16645734]
[1752057212870,1.5575799,108890.0,108880.0,1.16645734]
[1752057213371,1.5575799,108890.0,108880.0,1.15568781]
[1752057214782,1.5575799,108890.0,108880.0,1.15568773]
[1752057215282,1.5575799,108890.0,108880.0,1.15568768]
[1752057216285,1.64029308,108890.0,108880.0,1.10065275]
[1752057216783,1.38948318,108890.0,108880.0,1.10065275]
[1752057217081,1.64029308,108890.0,108880.0,1.10065275]
[1752057217983,1.01717308,108890.0,108880.0,1.10065275]
[1752057218385,1.64025308,108890.0,108880.0,1.10065275]
[1752057219079,1.01717308,108890.0,108880.0,1.10065275]
[1752057219281,1.64025308,108890.0,108880.0,1.10065275]
[1752057220085,1.38944318,108890.0,108880.0,1.10065275]
[1752057220287,1.64025308,108890.0,108880.0,1.10065275]
[1752057221687,1.38944318,108890.0,108880.0,1.10065275]
[1752057221985,1.64025308,108890.0,108880.0,1.10065275]
[1752057222587,1.38944318,108890.0,108880.0,0.84984285]
[1752057222791,1.64025308,108890.0,108880.0,1.10065275]
[1752057223393,1.38944318,108890.0,108880.0,1.11142219]
[1752057223576,1.64025308,108890.0,108880.0,1.11142219]
[1752057224190,1.38944318,108890.0,108880.0,1.11142219]
[1752057224381,1.64025308,108890.0,108880.0,1.11142219]
[1752057224581,1.38944318,108890.0,108880.0,1.11142219]
[1752057224781,1.64025308,108890.0,108880.0,1.11142219]
[1752057226380,1.5575399,108890.0,108880.0,1.16645712]
[1752057231276,1.5575399,108890.0,108880.0,1.16645694]
[1752057232795,1.30673,108890.0,108880.0,1.16645694]
[1752057233094,1.5575399,108890.0,108880.0,1.16645694]
[1752057235797,1.5575399,108890.0,108880.0,1.12606694]
[1752057237899,1.5575399,108890.0,108880.0,1.14933694]
[1752057238197,0.9344599,108890.0,108880.0,1.14933704]
[1752057238399,1.5575399,108890.0,108880.0,1.10807427]
[1752057239397,1.30673,108890.0,108880.0,1.35888417]
[1752057239597,1.5575399,108890.0,108880.0,1.35888417]
[1752057240597,1.5576999,108890.0,108880.0,1.35888417]
[1752057241305,1.30689,108890.0,108880.0,1.35888417]
[1752057241691,1.5576999,108890.0,108880.0,1.35888417]
[1752057242595,1.30689,108890.0,108880.0,1.35888417]
[1752057242895,0.29449776,108890.0,108880.0,1.73888417]
[1752057243102,0.29449776,108890.0,108880.0,2.36260384]
[1752057243405,0.29449776,108890.0,108880.0,2.14515624]
[1752057243701,0.29449776,108890.0,108880.0,2.4342088]
[1752057244401,0.29449776,108890.0,108880.0,2.37917387]
[1752057245900,0.29449776,108890.0,108880.0,2.35404559]
[1752057246199,0.29449776,108890.0,108880.0,1.51755159]
[1752057246401,0.29449776,108890.0,108880.0,2.45419155]
[1752057246799,0.29449776,108890.0,108880.0,1.57257175]
[1752057247003,0.29449776,108890.0,108880.0,2.44419155]
[1752057249607,0.29449776,108890.0,108880.0,2.41419155]
[1752057251804,0.29449776,108890.0,108880.0,2.41419186]
[1752057252205,0.47814806,108890.0,108880.0,2.41419186]
[1752057253206,0.29449776,108890.0,108880.0,2.41419186]
[1752057254700,0.29449776,108890.0,108880.0,2.41419221]
[1752057255403,0.29449776,108890.0,108880.0,2.41493221]
[1752057257507,0.29449776,108890.0,108880.0,2.40416373]
[1752057257701,0.29449776,108890.0,108880.0,1.91331268]
[1752057257906,0.29449776,108890.0,108880.0,2.41493262]
[1752057258411,0.29449776,108890.0,108880.0,2.15493262]
[1752057258609,0.29449776,108890.0,108880.0,2.39493262]
[1752057259407,0.72895796,108890.0,108880.0,1.51216006]
[1752057259713,0.72895796,108890.0,108880.0,2.41671132]
[1752057259904,0.47814806,108890.0,108880.0,2.41671132]
[1752057260721,0.47814806,108890.0,108880.0,2.41671157]
[1752057261117,0.72895796,108890.0,108880.0,2.41671157]
[1752057261518,0.29449776,108890.0,108880.0,2.12671157]
[1752057261711,0.54530766,108890.0,108880.0,2.12671157]
[1752057261912,0.54530766,108890.0,108880.0,2.1374803]
[1752057262218,0.29449776,108890.0,108880.0,2.1374803]
[1752057262716,0.47814806,108890.0,108880.0,2.1374803]
[1752057263712,0.29449776,108890.0,108880.0,2.1374803]
[1752057264810,0.47814806,108890.0,108880.0,2.1374803]
[1752057265315,0.29449776,108890.0,108880.0,2.4074803]
[1752057266412,0.29449776,108890.0,108880.0,2.36619305]
[1752057267417,0.47814806,108890.0,108880.0,2.11538315]
[1752057267615,0.47814806,108890.0,108880.0,2.36619305]
[1752057272223,0.29449776,108890.0,108880.0,2.36619305]
[1752057272524,0.47814806,108890.0,108880.0,2.36619305]
[1752057274726,0.29449776,108890.0,108880.0,1.86457325]
[1752057274922,0.29449776,108890.0,108880.0,2.36619305]
[1752057275121,0.47814806,108890.0,108880.0,2.36619296]
[1752057275728,0.47814806,108890.0,108880.0,1.52457316]
[1752057276029,0.47814806,108890.0,108880.0,2.40619296]
[1752057276331,0.47814806,108890.0,108880.0,2.39246005]
[1752057278131,0.29449776,108890.0,108880.0,2.39246]
[1752057278332,0.29449776,108890.0,108880.0,2.39127]
[1752057281731,0.29449776,108890.0,108880.0,2.36845]
[1752057281933,0.29449776,108890.0,108880.0,2.39127]
[1752057286937,0.29449776,108890.0,108880.0,2.39126951]
[1752057287127,0.29449776,108890.0,108880.0,1.88964971]
[1752057287327,0.29449776,108890.0,108880.0,2.39126951]
[1752057288132,0.29449776,108890.0,108880.0,1.88964971]
[1752057288336,0.29449776,108890.0,108880.0,2.39126951]
[1752057290332,0.29449776,108890.0,108880.0,2.37691171]
[1752057290637,0.29449776,108890.0,108880.0,2.39126967]
[1752057292939,0.29449776,108890.0,108880.0,1.88964987]
[1752057293132,0.29449776,108890.0,108880.0,2.39126967]
[1752057294427,0.47814806,108890.0,108880.0,2.39126967]
[1752057301240,0.47814806,108890.0,108880.0,2.39126946]
[1752057302535,0.47814806,108890.0,108880.0,1.88964966]
[1752057302736,0.47814806,108890.0,108880.0,2.39126946]
[1752057304044,0.47814806,108890.0,108880.0,1.88964966]
[1752057304346,0.47814806,108890.0,108880.0,2.39126946]
[1752057306346,0.47814806,108890.0,108880.0,2.36378476]
[1752057306847,0.47814806,108890.0,108880.0,1.86216496]
[1752057307041,0.47814806,108890.0,108880.0,2.36378476]
[1752057311849,0.47814806,108890.0,108880.0,1.86216496]
[1752057312043,0.47814806,108890.0,108880.0,2.36378476]
[1752057316352,0.47814806,108890.0,108880.0,2.39126946]
[1752057317154,0.29449776,108890.0,108880.0,2.39126946]
[1752057319957,0.47814816,108890.0,108880.0,0.96432966]
[1752057320252,0.47814816,108890.0,108880.0,1.77132946]
[1752057320453,0.47814816,108890.0,108880.0,1.26970966]
[1752057320650,0.47814816,108890.0,108880.0,1.77132946]
[1752057321656,0.47814816,108890.0,108880.0,1.26970966]
[1752057321958,0.47814816,108890.0,108880.0,1.77132946]
[1752057325759,0.47814816,108890.0,108880.0,1.73312946]
[1752057327861,0.47814816,108890.0,108880.0,1.75778946]
[1752057330163,0.47814816,108890.0,108880.0,1.25616966]
[1752057330366,0.47814816,108890.0,108880.0,1.75778946]
[1752057332866,0.29449776,108890.0,108880.0,1.75778946]
[1752057333360,0.29449776,108890.0,108880.0,1.7434315]
[1752057333564,0.29449776,108890.0,108880.0,1.75778946]
[1752057340971,0.29449776,108890.0,108880.0,1.75649946]
[1752057341768,0.29449776,108890.0,108880.0,1.81155693]
[1752057341974,0.29449776,108890.0,108880.0,2.00730936]
[1752057342370,0.29449776,108890.0,108880.0,1.75649946]
[1752057343570,0.29449776,108890.0,108880.0,1.67394706]
[1752057344277,0.29449776,108890.0,108880.0,1.17232726]
[1752057344577,0.29449776,108890.0,108880.0,1.67394706]
[1752057345075,0.29449776,108890.0,108880.0,1.75648919]
[1752057345277,0.29449776,108890.0,108880.0,1.73136276]
[1752057345476,0.29449776,108890.0,108880.0,1.75648716]
[1752057345678,0.29449776,108890.0,108880.0,1.7840149]
[1752057350076,0.29449776,108890.0,108880.0,1.2823951]
[1752057350281,0.29449776,108890.0,108880.0,1.7840149]
[1752057351180,0.29449776,108890.0,108880.0,1.67394503]
[1752057356388,0.29449776,108890.0,108880.0,1.75642834]
[1752057364989,0.29449776,108890.0,108880.0,1.74566074]
[1752057365194,0.29449776,108890.0,108880.0,1.75642834]
[1752057366398,0.29449776,108890.0,108880.0,1.7840149]
[1752057366892,0.29449776,108890.0,108880.0,2.00727545]
[1752057369197,0.29449776,108890.0,108880.0,1.92475493]
[1752057369699,0.29449776,108890.0,108880.0,2.0348248]
[1752057373792,0.29449776,108890.0,108880.0,2.020468]
[1752057373998,0.29449776,108890.0,108880.0,2.03482472]
[1752057374996,0.29449776,108890.0,108880.0,2.03682472]
[1752057375800,0.29449776,108890.0,108880.0,2.03882472]
[1752057376896,0.29449776,108890.0,108880.0,2.03882466]
[1752057382702,0.29449776,108890.0,108880.0,2.03882457]
[1752057387708,0.27892406,108890.0,108880.0,2.03882457]
[1752057387903,0.27892406,108890.0,108880.0,1.9287547]
[1752057388312,0.27892406,108890.0,108880.0,2.03883207]
[1752057388806,0.27892406,108890.0,108880.0,1.9287547]
[1752057389104,0.27892406,108890.0,108880.0,2.5537147]
[1752057391503,0.27892406,108890.0,108880.0,2.55371396]
[1752057392612,0.27892406,108890.0,108880.0,2.80135271]
[1752057392908,0.27892406,108890.0,108880.0,2.66376537]
[1752057396414,0.27892406,108890.0,108880.0,2.63623657]
[1752057400314,0.27892406,108890.0,108880.0,2.63623658]
[1752057401116,0.27892406,108890.0,108880.0,2.55371397]
[1752057401415,0.27892406,108890.0,108880.0,2.63587145]
[1752057403116,0.27892406,108890.0,108880.0,2.66340538]
[1752057406414,0.27892406,108890.0,108880.0,2.55335397]
[1752057407611,0.27892406,108890.0,108880.0,2.55315397]
[1752057408326,0.27892406,108890.0,108880.0,2.663186]
[1752057408920,0.27892406,108890.0,108880.0,2.66318518]
[1752057409823,0.27892406,108890.0,108880.0,2.41229528]
[1752057410023,0.31062406,108890.0,108880.0,2.41229528]
[1752057410321,0.31062406,108890.0,108880.0,1.78797528]
[1752057410517,0.34222406,108890.0,108880.0,1.78797528]
[1752057410813,0.34222406,108890.0,108880.0,1.72517528]
[1752057411018,0.34222406,108890.0,108880.0,2.34949528]
[1752057412018,0.34222406,108890.0,108880.0,2.33872856]
[1752057412224,0.34222406,108890.0,108880.0,2.34949635]
[1752057414922,0.34222406,108890.0,108880.0,2.33872856]
[1752057415120,0.34222406,108890.0,108880.0,2.3494975]
[1752057422026,0.77668436,108890.0,108880.0,1.7251775]
[1752057422322,0.77668436,108890.0,108880.0,2.07103138]
[1752057422531,0.77668436,108890.0,108880.0,2.3218416]
[1752057422825,0.52587446,108890.0,108880.0,2.3218416]
[1752057423125,0.78571142,108890.0,108880.0,2.3218416]
[1752057423924,0.53490152,108890.0,108880.0,2.3218416]
[1752057424223,0.53490152,108890.0,108880.0,2.0318416]
[1752057424622,0.78571142,108890.0,108880.0,0.72015567]
[1752057424819,0.78571142,108890.0,108880.0,0.80269202]
[1752057425122,0.78571142,108890.0,108880.0,0.77519104]
[1752057425326,0.78571142,108890.0,108880.0,0.81645443]
[1752057426628,0.96939142,108890.0,108880.0,0.81645443]
[1752057427617,0.78571142,108890.0,108880.0,0.81645443]
[1752057427816,0.78571142,108890.0,108880.0,1.06726433]
[1752057428127,0.96939142,108890.0,108880.0,1.06726433]
[1752057428328,0.96939142,108890.0,108880.0,0.81645443]
[1752057428818,0.78571142,108890.0,108880.0,0.81645443]
[1752057429420,0.78571142,108890.0,108880.0,0.76141906]
[1752057429623,0.78571142,108890.0,108880.0,0.81645443]
[1752057429927,0.78571142,108890.0,108880.0,0.76141906]
[1752057430127,0.78571142,108890.0,108880.0,0.81645443]
[1752057430427,0.78571142,108890.0,108880.0,0.76141906]
[1752057430729,0.78571142,108890.0,108880.0,0.81645443]
[1752057430929,0.78571142,108890.0,108880.0,0.81641876]
[1752057432026,0.78571142,108890.0,108880.0,1.08369866]
[1752057432226,0.78571142,108890.0,108880.0,1.06722866]
[1752057434818,0.78571142,108890.0,108880.0,1.06722995]
[1752057435226,0.78571142,108890.0,108880.0,1.01219458]
[1752057437829,0.78571142,108890.0,108880.0,1.0121963]
[1752057439235,0.78571142,108890.0,108880.0,1.0360763]
[1752057440637,0.78571142,108890.0,108880.0,1.02171753]
[1752057440838,0.78571142,108890.0,108880.0,1.03607631]
[1752057443642,0.78571142,108890.0,108880.0,1.02171753]
[1752057443846,0.78571142,108890.0,108880.0,1.03607635]
[1752057444942,0.78571142,108890.0,108880.0,1.02530727]
[1752057445850,0.53490152,108890.0,108880.0,1.02530727]
[1752057446146,0.78571142,108890.0,108880.0,1.02530727]
[1752057446542,0.78571142,108890.0,108880.0,0.98407955]
[1752057446741,0.78571142,108890.0,108880.0,1.00054955]
[1752057446947,0.72241142,108890.0,108880.0,1.00054955]
[1752057447137,1.09632152,108890.0,108880.0,1.31555945]
[1752057447347,1.09632152,108890.0,108880.0,1.65555945]
[1752057447748,1.34713142,108890.0,108880.0,1.65555945]
[1752057448746,1.34713142,108890.0,108880.0,1.15393965]
[1752057448941,1.34713142,108890.0,108880.0,1.31555945]
[1752057450356,1.34696442,108890.0,108880.0,1.31522545]
[1752057451153,1.34680442,108890.0,108880.0,1.31522545]
[1752057451453,1.34680442,108890.0,108880.0,1.35645317]
[1752057452250,1.34680442,108890.0,108880.0,1.10581027]
[1752057452749,1.34680442,108890.0,108880.0,1.10581064]
[1752057453254,0.46257446,108890.0,108880.0,1.10581064]
[1752057453451,1.33773736,108890.0,108880.0,1.36722293]
[1752057454845,1.08709446,108890.0,108880.0,1.36722293]
[1752057455053,1.33773736,108890.0,108880.0,1.36722293]
[1752057455446,1.33773736,108890.0,108880.0,1.11658003]
[1752057455953,1.34701996,108890.0,108880.0,1.11658003]
[1752057456351,1.34701996,108890.0,108880.0,1.13038768]
[1752057459546,1.34701996,108890.0,108880.0,1.21292403]
[1752057464660,1.34701996,108890.0,108880.0,1.21292358]
[1752057466363,1.34701996,108890.0,108880.0,1.15788821]
[1752057468049,1.34701996,108890.0,108880.0,0.90724531]
[1752057468252,1.34701996,108890.0,108880.0,1.15788821]
[1752057469959,0.71321736,108890.0,108880.0,1.15788821]
[1752057470160,1.33721736,108890.0,108880.0,1.40853111]
[1752057471571,1.33721736,108890.0,108880.0,1.46360737]
[1752057472262,0.46257446,108890.0,108880.0,1.45283798]
[1752057472470,1.33721736,108890.0,108880.0,1.43847924]
[1752057472959,1.08665396,108890.0,108880.0,1.43847924]
[1752057473761,1.33729686,108890.0,108880.0,1.43647924]
[1752057473959,1.33729686,108890.0,108880.0,1.43847924]
[1752057474369,1.33729686,108890.0,108880.0,1.46360708]
[1752057475166,1.33729686,108890.0,108880.0,1.40853082]
[1752057475565,0.90296406,108890.0,108880.0,1.78853082]
[1752057475967,0.90296406,108890.0,108880.0,1.77776175]
[1752057476168,0.90296406,108890.0,108880.0,1.78853079]
[1752057476668,0.27892406,108890.0,108880.0,1.78853079]
[1752057476872,0.90304406,108890.0,108880.0,1.78853079]
[1752057478472,0.90304406,108890.0,108880.0,1.7975542]
[1752057481873,0.27892406,108890.0,108880.0,1.7975542]
[1752057482069,0.90292406,108890.0,108880.0,1.7975542]
[1752057484777,0.27892406,108890.0,108880.0,1.7975542]
[1752057484975,0.90292406,108890.0,108880.0,1.7975542]
[1752057486370,0.90292406,108890.0,108880.0,1.81136746]
[1752057486873,0.90292406,108890.0,108880.0,2.43536746]
[1752057489876,0.90292406,108890.0,108880.0,2.43536683]
[1752057493678,0.90292406,108890.0,108880.0,2.43536591]
[1752057494980,0.90292406,108890.0,108880.0,2.4353643]
[1752057496584,0.90292406,108890.0,108880.0,1.58630036]
[1752057496782,0.90292406,108890.0,108880.0,2.44758616]
[1752057497590,0.90292406,108890.0,108880.0,2.15758616]
[1752057498680,0.90292406,108890.0,108880.0,2.10252924]
[1752057500676,0.90292406,108890.0,108880.0,2.40252924]
[1752057501697,0.90292406,108890.0,108880.0,2.39176084]
[1752057501880,0.90292406,108890.0,108880.0,2.41174788]
[1752057506084,0.90292406,108890.0,108880.0,2.40252915]
[1752057507390,0.27892406,108890.0,108880.0,2.45759316]
[1752057507591,0.27892406,108890.0,108880.0,1.83576718]
[1752057507782,0.27892406,108890.0,108880.0,1.88374238]
[1752057508186,0.27892406,108890.0,108880.0,2.38502818]
[1752057508486,0.27892406,108890.0,108880.0,2.04252386]
[1752057508690,0.27892406,108890.0,108880.0,2.38252386]
[1752057509085,0.27892406,108890.0,108880.0,2.3915602]
[1752057509686,0.27892406,108890.0,108880.0,2.28152817]
[1752057510391,0.27892406,108890.0,108880.0,2.3640924]
[1752057510591,0.27892406,108890.0,108880.0,2.3640922]
[1752057511087,0.27892406,108890.0,108880.0,2.3412422]
[1752057511283,0.27892406,108890.0,108880.0,2.3640922]
[1752057511684,0.27892406,108890.0,108880.0,2.28152797]
[1752057512792,0.27892406,108890.0,108880.0,2.39156]
[1752057514994,0.27892406,108890.0,108880.0,2.28152797]
[1752057516091,0.27892406,108890.0,108880.0,2.25867797]
[1752057516996,0.27892406,108890.0,108880.0,2.36871]
[1752057517199,0.27892406,108890.0,108880.0,2.25867797]
[1752057518195,0.27892406,108890.0,108880.0,2.27614093]
[1752057520086,0.27892406,108890.0,108880.0,2.27614078]
[1752057520988,0.27892406,108890.0,108880.0,2.38617281]
[1752057521190,0.27892406,108890.0,108880.0,2.41098281]
[1752057521386,0.27892406,108890.0,108880.0,1.56969701]
[1752057521591,0.27892406,108890.0,108880.0,2.41194647]
[1752057521792,0.27892406,108890.0,108880.0,2.41200226]
[1752057523002,0.27892406,108890.0,108880.0,2.30197023]
[1752057523803,0.27892406,108890.0,108880.0,2.41200226]
[1752057524597,0.27892406,108890.0,108880.0,2.42124331]
[1752057531316,0.27892406,108890.0,108880.0,2.42124361]
[1752057535215,0.27892406,108890.0,108880.0,2.42124384]
[1752057536403,0.27892406,108890.0,108880.0,2.39380034]
[1752057537516,0.27892406,108890.0,108880.0,2.67188674]
[1752057542021,0.27892406,108890.0,108880.0,2.66111872]
[1752057542225,0.27892406,108890.0,108880.0,2.67188574]
[1752057544328,0.27892406,108890.0,108880.0,2.56185371]
[1752057544531,0.27892406,108890.0,108880.0,2.67188574]
[1752057546345,0.27892406,108890.0,108880.0,3.14736574]
[1752057546346,0.22835056,108890.0,108880.0,3.14736574]
[1752057546538,0.22835056,108890.0,108880.0,3.17492105]
[1752057548039,0.14014196,108890.0,108880.0,3.17492105]
[1752057548234,6e-08,108890.0,108880.0,3.17492105]
[1752057551146,6e-08,108890.0,108880.0,3.17492012]
[1752057553941,6e-08,108890.0,108880.0,3.17491755]
[1752057555550,6e-08,108890.0,108880.0,2.99123755]
[1752057555740,6e-08,108890.0,108880.0,3.17491755]
[1752057556649,6e-08,108890.0,108880.0,2.99123755]
[1752057558448,6e-08,108890.0,108880.0,2.85365021]
[1752057561151,8e-08,108900.0,108890.0,0.1836497]
[1752057561348,8e-08,108900.0,108890.0,2.1834506]
[1752057563353,8e-08,108900.0,108890.0,2.4752506]
[1752057565257,8e-08,108900.0,108890.0,2.36540928]
[1752057565558,8e-08,108900.0,108890.0,2.50299662]
[1752057566650,8e-08,108900.0,108890.0,2.36540928]
[1752057567458,8e-08,108900.0,108890.0,2.50299662]
[1752057567858,8e-08,108900.0,108890.0,2.50499662]
[1752057568764,8e-08,108900.0,108890.0,2.50699662]
[1752057571762,8e-08,108900.0,108890.0,2.5069955]
[1752057574071,8e-08,108900.0,108890.0,1.7550668]
[1752057574364,8e-08,108900.0,108890.0,2.5069955]
[1752057576458,8e-08,108900.0,108890.0,2.61697084]
[1752057576766,8e-08,108900.0,108890.0,2.4793835]
[1752057579764,0.0649,108910.0,108900.0,0.1836327]
[1752057579959,0.0649,108910.0,108900.0,2.06892634]
[1752057580559,0.0649,108910.0,108900.0,2.06892482]
[1752057581269,0.0649,108910.0,108900.0,2.10192482]
[1752057581659,0.0649,108910.0,108900.0,2.13502482]
[1752057583168,0.01105444,108920.0,108910.0,0.1836157]
[1752057583371,0.07175444,108920.0,108910.0,1.17543938]
[1752057584363,0.07275444,108920.0,108910.0,1.17543938]
[1752057585871,0.07475444,108920.0,108910.0,1.17543938]
[1752057586365,0.07475444,108920.0,108910.0,1.15943938]
[1752057586574,0.07475444,108920.0,108910.0,1.18693874]
[1752057587474,0.07375444,108920.0,108910.0,1.18693874]
[1752057588375,0.07175444,108920.0,108910.0,1.18693874]
[1752057589169,0.01045745,108930.0,108920.0,0.183599]
[1752057589371,0.01045745,108930.0,108920.0,2.09869735]
[1752057589570,0.01045745,108930.0,108920.0,2.16189735]
[1752057589772,0.01045745,108930.0,108920.0,2.03897835]
[1752057589970,0.01045745,108930.0,108920.0,2.06340835]
[1752057590174,0.01045745,108930.0,108920.0,1.81276545]
[1752057590382,0.01045745,108930.0,108920.0,2.06340835]
[1752057590584,0.01145745,108930.0,108920.0,2.06340835]
[1752057591371,0.01045745,108930.0,108920.0,2.06340835]
[1752057591679,0.01045745,108930.0,108920.0,2.14579428]
[1752057591680,0.01245745,108930.0,108920.0,2.14579428]
[1752057591984,0.01045745,108930.0,108920.0,2.14579428]
[1752057593479,0.01045745,108930.0,108920.0,2.06340835]
[1752057595580,0.01045745,108930.0,108920.0,2.14573611]
[1752057598388,0.01045745,108930.0,108920.0,2.13138531]
[1752057598582,0.01045745,108930.0,108920.0,2.14573611]
[1752057603397,0.01045745,108930.0,108920.0,2.14573422]
[1752057603795,0.01045745,108930.0,108920.0,1.89741132]
[1752057605887,0.01045745,108930.0,108920.0,2.14805422]
[1752057606495,0.01045745,108930.0,108920.0,2.06572399]
[1752057607294,0.01045745,108930.0,108920.0,2.14804006]
[1752057607696,0.01045745,108930.0,108920.0,1.89739716]
[1752057610797,0.01045745,108930.0,108920.0,1.51804006]
[1752057611096,0.01045745,108930.0,108920.0,2.14820006]
[1752057612895,0.01045745,108930.0,108920.0,2.06588399]
[1752057613095,0.01045745,108930.0,108920.0,2.14824647]
[1752057613402,0.01045745,108930.0,108920.0,2.06588399]
[1752057614804,0.01045745,108930.0,108920.0,2.17570063]
[1752057615302,0.01045745,108930.0,108920.0,2.1757006]
[1752057616793,0.01045745,108930.0,108920.0,2.17570058]
[1752057622603,0.01045745,108930.0,108920.0,2.17570059]
[1752057626307,0.01045745,108930.0,108920.0,2.06588395]
[1752057626507,0.01045745,108930.0,108920.0,2.14841717]
[1752057627410,0.01045745,108930.0,108920.0,2.14841715]
[1752057628507,0.01045745,108930.0,108920.0,2.14841712]
[1752057631315,0.01045745,108930.0,108920.0,2.17570054]
[1752057633324,0.01045745,108930.0,108920.0,2.1757005]
[1752057636417,0.01045745,108930.0,108920.0,2.17570038]
[1752057639319,0.01045745,108930.0,108920.0,2.17570026]
[1752057642422,0.01045745,108930.0,108920.0,2.06588373]
[1752057643219,0.01045745,108930.0,108920.0,2.20095453]
[1752057643724,0.01045745,108930.0,108920.0,1.57299453]
[1752057644022,0.01045745,108930.0,108920.0,2.20091453]
[1752057645224,0.01045745,108930.0,108920.0,2.06364373]
[1752057645424,0.01045745,108930.0,108920.0,2.17367829]
[1752057646423,0.01045745,108930.0,108920.0,2.06364373]
[1752057648129,0.01045745,108930.0,108920.0,2.06364372]
[1752057648626,0.01045745,108930.0,108920.0,2.17367785]
[1752057655628,0.01045745,108930.0,108920.0,2.15932717]